Workbook

Sheet Uitleg
A2: Indien Juist staat het woord Juist in kolom K.
A3: U kan best het woord laten staan (dan weet U wat gedaan is).
A6: Het te zoeken woord staat op Blad2.
A8: Met de gegeven letters kan men ook andere woorden vormen,
A9: aan U de keuze.(vanaf kolom AC staan de te zoeken woorden)
A10: Te beginnen vanaf Opgave 214
A11: Veel plezier ermee.

Sheet Nummer
A1: Nr/ | B1: Nr/ | D1: Nr | E1: Nr | F1: Nr | G1: Nr | H1: Nr | I1: Nr | J1: Nr | K1: Nr | L1: Nr | M1: Nr | N1: Nr | O1: Nr | P1: Nr | Q1: Nr | R1: Nr | S1: Nr | T1: Nr | U1: Nr | V1: Nr | W1: Nr | X1: Nr | Y1: Nr | Z1: Nr | AA1: Nr | AB1: Nr | AC1: Nr | AD1: Nr | AE1: Nr | AF1: Nr | AG1: Nr | AH1: Nr | AI1: Nr | AJ1: Nr | AK1: Nr | AL1: Nr | AM1: Nr | AN1: Nr | AO1: Nr | AP1: Nr | AQ1: Nr | AR1: Nr | AS1: Nr | AT1: Nr | AU1: Nr | AV1: Nr | AW1: Nr | AX1: Nr | AY1: Nr | AZ1: Nr | BA1: Nr | BB1: Nr
A2: 1 | B2: =A2+30 -> 31 | C2: 61 | D2: 91 | E2: 121 | F2: 151 | G2: 181 | H2: =G2+30 -> 211 | I2: =H2+30 -> 241 | J2: =I2+30 -> 271 | K2: =J2+30 -> 301 | L2: =K2+30 -> 331 | M2: =L2+30 -> 361 | N2: =M2+30 -> 391 | O2: =N2+30 -> 421 | P2: =O2+30 -> 451 | Q2: =P2+30 -> 481 | R2: =Q2+30 -> 511 | S2: =R2+30 -> 541 | T2: =S2+30 -> 571 | U2: =T2+30 -> 601 | V2: =U2+30 -> 631 | W2: =V2+30 -> 661 | X2: =W2+30 -> 691 | Y2: =X2+30 -> 721 | Z2: =Y2+30 -> 751 | AA2: =Z2+30 -> 781 | AB2: =AA2+30 -> 811 | AC2: =AB2+30 -> 841 | AD2: =AC2+30 -> 871 | AE2: =AD2+30 -> 901 | AF2: =AE2+30 -> 931 | AG2: =AF2+30 -> 961 | AH2: =AG2+30 -> 991 | AI2: =AH2+30 -> 1021 | AJ2: =AI2+30 -> 1051 | AK2: =AJ2+30 -> 1081 | AL2: =AK2+30 -> 1111 | AM2: =AL2+30 -> 1141 | AN2: =AM2+30 -> 1171 | AO2: =AN2+30 -> 1201 | AP2: =AO2+30 -> 1231 | AQ2: =AP2+30 -> 1261 | AR2: =AQ2+30 -> 1291 | AS2: =AR2+30 -> 1321 | AT2: =AS2+30 -> 1351 | AU2: =AT2+30 -> 1381 | AV2: =AU2+30 -> 1411 | AW2: =AV2+30 -> 1441 | AX2: =AW2+30 -> 1471 | AY2: =AX2+30 -> 1501 | AZ2: =AY2+30 -> 1531 | BA2: =AZ2+30 -> 1561 | BB2: 1591
A3: 2 | B3: =A3+30 -> 32 | C3: 62 | D3: 92 | E3: 122 | F3: 152 | G3: 182 | H3: 212
A4: 3 | B4: 33 | C4: 63 | D4: 93 | E4: 123 | F4: 153 | G4: 183 | H4: 213
A5: 4 | B5: 34 | C5: 64 | D5: 94 | E5: 124 | F5: 154 | G5: 184 | H5: 214
A6: 5 | B6: 35 | C6: 65 | D6: 95 | E6: 125 | F6: 155 | G6: 185 | H6: 215
A7: 6 | B7: 36 | C7: 66 | D7: 96 | E7: 126 | F7: 156 | G7: 186 | H7: 216
A8: 7 | B8: 37 | C8: 67 | D8: 97 | E8: 127 | F8: 157 | G8: 187 | H8: 217
A9: 8 | B9: 38 | C9: 68 | D9: 98 | E9: 128 | F9: 158 | G9: 188 | H9: 218
A10: 9 | B10: 39 | C10: 69 | D10: 99 | E10: 129 | F10: 159 | G10: 189 | H10: 219
A11: 10 | B11: 40 | C11: 70 | D11: 100 | E11: 130 | F11: 160 | G11: 190 | H11: 220
A12: 11 | B12: 41 | C12: 71 | D12: 101 | E12: 131 | F12: 161 | G12: 191 | H12: 221
A13: 12 | B13: 42 | C13: 72 | D13: 102 | E13: 132 | F13: 162 | G13: 192 | H13: 222
A14: 13 | B14: 43 | C14: 73 | D14: 103 | E14: 133 | F14: 163 | G14: 193 | H14: 223
A15: 14 | B15: 44 | C15: 74 | D15: 104 | E15: 134 | F15: 164 | G15: 194 | H15: 224
A16: 15 | B16: 45 | C16: 75 | D16: 105 | E16: 135 | F16: 165 | G16: 195 | H16: 225
A17: 16 | B17: 46 | C17: 76 | D17: 106 | E17: 136 | F17: 166 | G17: 196 | H17: 226
A18: 17 | B18: 47 | C18: 77 | D18: 107 | E18: 137 | F18: 167 | G18: 197 | H18: 227
A19: 18 | B19: 48 | C19: 78 | D19: 108 | E19: 138 | F19: 168 | G19: 198 | H19: 228
A20: 19 | B20: 49 | C20: 79 | D20: 109 | E20: 139 | F20: 169 | G20: 199 | H20: 229
A21: 20 | B21: 50 | C21: 80 | D21: 110 | E21: 140 | F21: 170 | G21: 200 | H21: 230
A22: 21 | B22: 51 | C22: 81 | D22: 111 | E22: 141 | F22: 171 | G22: 201 | H22: 231
A23: 22 | B23: 52 | C23: 82 | D23: 112 | E23: 142 | F23: 172 | G23: 202 | H23: 232
A24: 23 | B24: 53 | C24: 83 | D24: 113 | E24: 143 | F24: 173 | G24: 203 | H24: 233
A25: 24 | B25: 54 | C25: 84 | D25: 114 | E25: 144 | F25: 174 | G25: 204 | H25: 234
A26: 25 | B26: 55 | C26: 85 | D26: 115 | E26: 145 | F26: 175 | G26: 205 | H26: 235
A27: 26 | B27: 56 | C27: 86 | D27: 116 | E27: 146 | F27: 176 | G27: 206 | H27: 236
A28: 27 | B28: 57 | C28: 87 | D28: 117 | E28: 147 | F28: 177 | G28: 207 | H28: 237
A29: 28 | B29: 58 | C29: 88 | D29: 118 | E29: 148 | F29: 178 | G29: 208 | H29: 238
A30: 29 | B30: 59 | C30: 89 | D30: 119 | E30: 149 | F30: 179 | G30: 209 | H30: 239
A31: 30 | B31: 60 | C31: 90 | D31: 120 | E31: 150 | F31: 180 | G31: 210 | H31: 240

Sheet Blad1
C1: 1 | D1: 2 | E1: 3 | F1: 4 | G1: 5 | H1: 6 | I1: 7 | J1: Woord
A2: Opgave: | B2: 1 | C2: T | D2: U | E2: L | F2: F | G2: E | H2: R | I2: I | K2: =IF( J2 = "", "", IF(J2 = Blad2!B2, "Juist", "Niet juist" )) -> 
A3: Opgave: | B3: 2 | C3: K | D3: M | E3: L | F3: P | G3: E | H3: A | I3: R | K3: =IF( J3 = "", "", IF(J3 = Blad2!B3, "Juist", "Niet juist" )) -> 
A4: Opgave: | B4: 3 | C4: E | D4: M | E4: S | F4: N | G4: R | H4: O | I4: G | K4: =IF( J4 = "", "", IF(J4 = Blad2!B4, "Juist", "Niet juist" )) -> 
A5: Opgave: | B5: 4 | C5: R | D5: D | E5: N | F5: K | G5: E | H5: J | I5: A | K5: =IF( J5 = "", "", IF(J5 = Blad2!B5, "Juist", "Niet juist" )) -> 
A6: Opgave: | B6: 5 | C6: A | D6: S | E6: G | F6: E | G6: V | H6: R | I6: N | K6: =IF( J6 = "", "", IF(J6 = Blad2!B6, "Juist", "Niet juist" )) -> 
A7: Opgave: | B7: 6 | C7: A | D7: K | E7: S | F7: N | G7: D | H7: E | I7: T | K7: =IF( J7 = "", "", IF(J7 = Blad2!B7, "Juist", "Niet juist" )) -> 
A8: Opgave: | B8: 7 | C8: R | D8: S | E8: D | F8: O | G8: L | H8: E | I8: P | K8: =IF( J8 = "", "", IF(J8 = Blad2!B8, "Juist", "Niet juist" )) -> 
A9: Opgave: | B9: 8 | C9: A | D9: L | E9: R | F9: F | G9: T | H9: S | I9: E | K9: =IF( J9 = "", "", IF(J9 = Blad2!B9, "Juist", "Niet juist" )) -> 
A10: Opgave: | B10: 9 | C10: E | D10: P | E10: U | F10: N | G10: I | H10: R | I10: D | K10: =IF( J10 = "", "", IF(J10 = Blad2!B10, "Juist", "Niet juist" )) -> 
A11: Opgave: | B11: 10 | C11: L | D11: S | E11: I | F11: U | G11: P | H11: E | I11: R | K11: =IF( J11 = "", "", IF(J11 = Blad2!B11, "Juist", "Niet juist" )) -> 
A12: Opgave: | B12: 11 | C12: T | D12: I | E12: A | F12: L | G12: R | H12: S | I12: E | K12: =IF( J12 = "", "", IF(J12 = Blad2!B12, "Juist", "Niet juist" )) -> 
A13: Opgave: | B13: 12 | C13: T | D13: A | E13: O | F13: N | G13: R | H13: I | I13: S | K13: =IF( J13 = "", "", IF(J13 = Blad2!B13, "Juist", "Niet juist" )) -> 
A14: Opgave: | B14: 13 | C14: E | D14: L | E14: I | F14: D | G14: A | H14: R | I14: T | K14: =IF( J14 = "", "", IF(J14 = Blad2!B14, "Juist", "Niet juist" )) -> 
A15: Opgave: | B15: 14 | C15: T | D15: A | E15: P | F15: R | G15: H | H15: I | I15: S | K15: =IF( J15 = "", "", IF(J15 = Blad2!B15, "Juist", "Niet juist" )) -> 
A16: Opgave: | B16: 15 | C16: L | D16: T | E16: B | F16: U | G16: E | H16: I | I16: S | K16: =IF( J16 = "", "", IF(J16 = Blad2!B16, "Juist", "Niet juist" )) -> 
A17: Opgave: | B17: 16 | C17: I | D17: O | E17: T | F17: E | G17: N | H17: R | I17: U | K17: =IF( J17 = "", "", IF(J17 = Blad2!B17, "Juist", "Niet juist" )) -> 
A18: Opgave: | B18: 17 | C18: O | D18: N | E18: L | F18: G | G18: V | H18: E | I18: D | K18: =IF( J18 = "", "", IF(J18 = Blad2!B18, "Juist", "Niet juist" )) -> 
A19: Opgave: | B19: 18 | C19: E | D19: O | E19: G | F19: I | G19: N | H19: V | I19: L | K19: =IF( J19 = "", "", IF(J19 = Blad2!B19, "Juist", "Niet juist" )) -> 
A20: Opgave: | B20: 19 | C20: E | D20: A | E20: R | F20: M | G20: T | H20: O | I20: N | K20: =IF( J20 = "", "", IF(J20 = Blad2!B20, "Juist", "Niet juist" )) -> 
A21: Opgave: | B21: 20 | C21: K | D21: S | E21: T | F21: O | G21: G | H21: R | I21: E | K21: =IF( J21 = "", "", IF(J21 = Blad2!B21, "Juist", "Niet juist" )) -> 
A22: Opgave: | B22: 21 | C22: S | D22: K | E22: I | F22: T | G22: E | H22: J | I22: R | K22: =IF( J22 = "", "", IF(J22 = Blad2!B22, "Juist", "Niet juist" )) -> 
A23: Opgave: | B23: 22 | C23: E | D23: K | E23: N | F23: O | G23: R | H23: I | I23: P | K23: =IF( J23 = "", "", IF(J23 = Blad2!B23, "Juist", "Niet juist" )) -> 
A24: Opgave: | B24: 23 | C24: T | D24: P | E24: A | F24: I | G24: E | H24: R | I24: B | K24: =IF( J24 = "", "", IF(J24 = Blad2!B24, "Juist", "Niet juist" )) -> 
A25: Opgave: | B25: 24 | C25: N | D25: T | E25: S | F25: E | G25: R | H25: O | I25: K | K25: =IF( J25 = "", "", IF(J25 = Blad2!B25, "Juist", "Niet juist" )) -> 
A26: Opgave: | B26: 25 | C26: A | D26: T | E26: K | F26: G | G26: L | H26: E | I26: S | K26: =IF( J26 = "", "", IF(J26 = Blad2!B26, "Juist", "Niet juist" )) -> 
A27: Opgave: | B27: 26 | C27: S | D27: M | E27: I | F27: T | G27: E | H27: P | I27: A | K27: =IF( J27 = "", "", IF(J27 = Blad2!B27, "Juist", "Niet juist" )) -> 
A28: Opgave: | B28: 27 | C28: E | D28: O | E28: I | F28: G | G28: V | H28: D | I28: R | K28: =IF( J28 = "", "", IF(J28 = Blad2!B28, "Juist", "Niet juist" )) -> 
A29: Opgave: | B29: 28 | C29: R | D29: N | E29: K | F29: D | G29: B | H29: A | I29: E | K29: =IF( J29 = "", "", IF(J29 = Blad2!B29, "Juist", "Niet juist" )) -> 
A30: Opgave: | B30: 29 | C30: T | D30: E | E30: P | F30: O | G30: S | H30: K | I30: M | K30: =IF( J30 = "", "", IF(J30 = Blad2!B30, "Juist", "Niet juist" )) -> 
A31: Opgave: | B31: 30 | C31: R | D31: N | E31: E | F31: S | G31: T | H31: O | I31: D | K31: =IF( J31 = "", "", IF(J31 = Blad2!B31, "Juist", "Niet juist" )) -> 
A32: Opgave: | B32: 31 | C32: A | D32: N | E32: E | F32: R | G32: W | H32: F | I32: D | K32: =IF( J32 = "", "", IF(J32 = Blad2!B32, "Juist", "Niet juist" )) -> 
A33: Opgave: | B33: 32 | C33: R | D33: K | E33: T | F33: M | G33: S | H33: Z | I33: A | K33: =IF( J33 = "", "", IF(J33 = Blad2!B33, "Juist", "Niet juist" )) -> 
A34: Opgave: | B34: 33 | C34: R | D34: S | E34: I | F34: P | G34: M | H34: U | I34: E | K34: =IF( J34 = "", "", IF(J34 = Blad2!B34, "Juist", "Niet juist" )) -> 
A35: Opgave: | B35: 34 | C35: T | D35: N | E35: U | F35: R | G35: I | H35: D | I35: E | K35: =IF( J35 = "", "", IF(J35 = Blad2!B35, "Juist", "Niet juist" )) -> 
A36: Opgave: | B36: 35 | C36: S | D36: P | E36: I | F36: T | G36: H | H36: R | I36: E | K36: =IF( J36 = "", "", IF(J36 = Blad2!B36, "Juist", "Niet juist" )) -> 
A37: Opgave: | B37: 36 | C37: S | D37: T | E37: L | F37: K | G37: N | H37: E | I37: U | K37: =IF( J37 = "", "", IF(J37 = Blad2!B37, "Juist", "Niet juist" )) -> 
A38: Opgave: | B38: 37 | C38: E | D38: K | E38: W | F38: G | G38: R | H38: I | I38: N | K38: =IF( J38 = "", "", IF(J38 = Blad2!B38, "Juist", "Niet juist" )) -> 
A39: Opgave: | B39: 38 | C39: S | D39: R | E39: A | F39: T | G39: I | H39: L | I39: K | K39: =IF( J39 = "", "", IF(J39 = Blad2!B39, "Juist", "Niet juist" )) -> 
A40: Opgave: | B40: 39 | C40: E | D40: U | E40: I | F40: N | G40: R | H40: V | I40: S | K40: =IF( J40 = "", "", IF(J40 = Blad2!B40, "Juist", "Niet juist" )) -> 
A41: Opgave: | B41: 40 | C41: A | D41: N | E41: E | F41: T | G41: S | H41: G | I41: P | K41: =IF( J41 = "", "", IF(J41 = Blad2!B41, "Juist", "Niet juist" )) -> 
A42: Opgave: | B42: 41 | C42: R | D42: L | E42: I | F42: T | G42: A | H42: K | I42: E | K42: =IF( J42 = "", "", IF(J42 = Blad2!B42, "Juist", "Niet juist" )) -> 
A43: Opgave: | B43: 42 | C43: I | D43: S | E43: G | F43: N | G43: R | H43: L | I43: E | K43: =IF( J43 = "", "", IF(J43 = Blad2!B43, "Juist", "Niet juist" )) -> 
A44: Opgave: | B44: 43 | C44: A | D44: D | E44: E | F44: W | G44: N | H44: L | I44: G | K44: =IF( J44 = "", "", IF(J44 = Blad2!B44, "Juist", "Niet juist" )) -> 
A45: Opgave: | B45: 44 | C45: S | D45: R | E45: B | F45: A | G45: N | H45: T | I45: E | K45: =IF( J45 = "", "", IF(J45 = Blad2!B45, "Juist", "Niet juist" )) -> 
A46: Opgave: | B46: 45 | C46: E | D46: G | E46: I | F46: R | G46: O | H46: P | I46: N | K46: =IF( J46 = "", "", IF(J46 = Blad2!B46, "Juist", "Niet juist" )) -> 
A47: Opgave: | B47: 46 | C47: R | D47: S | E47: E | F47: O | G47: N | H47: A | I47: T | K47: =IF( J47 = "", "", IF(J47 = Blad2!B47, "Juist", "Niet juist" )) -> 
A48: Opgave: | B48: 47 | C48: E | D48: S | E48: O | F48: B | G48: L | H48: R | I48: T | K48: =IF( J48 = "", "", IF(J48 = Blad2!B48, "Juist", "Niet juist" )) -> 
A49: Opgave: | B49: 48 | C49: E | D49: O | E49: I | F49: R | G49: M | H49: S | I49: N | K49: =IF( J49 = "", "", IF(J49 = Blad2!B49, "Juist", "Niet juist" )) -> 
A50: Opgave: | B50: 49 | C50: I | D50: G | E50: D | F50: N | G50: R | H50: B | I50: E | K50: =IF( J50 = "", "", IF(J50 = Blad2!B50, "Juist", "Niet juist" )) -> 
A51: Opgave: | B51: 50 | C51: E | D51: L | E51: O | F51: M | G51: B | H51: R | I51: K | K51: =IF( J51 = "", "", IF(J51 = Blad2!B51, "Juist", "Niet juist" )) -> 
A52: Opgave: | B52: 51 | C52: S | D52: L | E52: E | F52: R | G52: B | H52: P | I52: O | K52: =IF( J52 = "", "", IF(J52 = Blad2!B52, "Juist", "Niet juist" )) -> 
A53: Opgave: | B53: 52 | C53: A | D53: N | E53: D | F53: E | G53: L | H53: K | I53: B | K53: =IF( J53 = "", "", IF(J53 = Blad2!B53, "Juist", "Niet juist" )) -> 
A54: Opgave: | B54: 53 | C54: S | D54: I | E54: R | F54: T | G54: E | H54: M | I54: V | K54: =IF( J54 = "", "", IF(J54 = Blad2!B54, "Juist", "Niet juist" )) -> 
A55: Opgave: | B55: 54 | C55: I | D55: U | E55: R | F55: K | G55: B | H55: S | I55: T | K55: =IF( J55 = "", "", IF(J55 = Blad2!B55, "Juist", "Niet juist" )) -> 
A56: Opgave: | B56: 55 | C56: N | D56: R | E56: D | F56: E | G56: T | H56: A | I56: O | K56: =IF( J56 = "", "", IF(J56 = Blad2!B56, "Juist", "Niet juist" )) -> 
A57: Opgave: | B57: 56 | C57: N | D57: E | E57: I | F57: K | G57: S | H57: U | I57: R | K57: =IF( J57 = "", "", IF(J57 = Blad2!B57, "Juist", "Niet juist" )) -> 
A58: Opgave: | B58: 57 | C58: T | D58: S | E58: I | F58: M | G58: K | H58: A | I58: E | K58: =IF( J58 = "", "", IF(J58 = Blad2!B58, "Juist", "Niet juist" )) -> 
A59: Opgave: | B59: 58 | C59: O | D59: D | E59: T | F59: R | G59: E | H59: S | I59: K | K59: =IF( J59 = "", "", IF(J59 = Blad2!B59, "Juist", "Niet juist" )) -> 
A60: Opgave: | B60: 59 | C60: E | D60: P | E60: T | F60: R | G60: I | H60: O | I60: K | K60: =IF( J60 = "", "", IF(J60 = Blad2!B60, "Juist", "Niet juist" )) -> 
A61: Opgave: | B61: 60 | C61: R | D61: O | E61: V | F61: K | G61: B | H61: E | I61: A | K61: =IF( J61 = "", "", IF(J61 = Blad2!B61, "Juist", "Niet juist" )) -> 
A62: Opgave: | B62: 61 | C62: S | D62: P | E62: O | F62: A | G62: L | H62: T | I62: E | K62: =IF( J62 = "", "", IF(J62 = Blad2!B62, "Juist", "Niet juist" )) -> 
A63: Opgave: | B63: 62 | C63: T | D63: F | E63: L | F63: E | G63: I | H63: U | I63: S | K63: =IF( J63 = "", "", IF(J63 = Blad2!B63, "Juist", "Niet juist" )) -> 
A64: Opgave: | B64: 63 | C64: A | D64: E | E64: L | F64: N | G64: S | H64: P | I64: G | K64: =IF( J64 = "", "", IF(J64 = Blad2!B64, "Juist", "Niet juist" )) -> 
A65: Opgave: | B65: 64 | C65: R | D65: I | E65: S | F65: L | G65: U | H65: T | I65: E | K65: =IF( J65 = "", "", IF(J65 = Blad2!B65, "Juist", "Niet juist" )) -> 
A66: Opgave: | B66: 65 | C66: K | D66: N | E66: A | F66: L | G66: P | H66: E | I66: I | K66: =IF( J66 = "", "", IF(J66 = Blad2!B66, "Juist", "Niet juist" )) -> 
A67: Opgave: | B67: 66 | C67: T | D67: I | E67: F | F67: N | G67: U | H67: L | I67: E | K67: =IF( J67 = "", "", IF(J67 = Blad2!B67, "Juist", "Niet juist" )) -> 
A68: Opgave: | B68: 67 | C68: I | D68: B | E68: E | F68: N | G68: R | H68: U | I68: S | K68: =IF( J68 = "", "", IF(J68 = Blad2!B68, "Juist", "Niet juist" )) -> 
A69: Opgave: | B69: 68 | C69: E | D69: O | E69: P | F69: I | G69: R | H69: D | I69: K | K69: =IF( J69 = "", "", IF(J69 = Blad2!B69, "Juist", "Niet juist" )) -> 
A70: Opgave: | B70: 69 | C70: E | D70: T | E70: I | F70: L | G70: N | H70: F | I70: S | K70: =IF( J70 = "", "", IF(J70 = Blad2!B70, "Juist", "Niet juist" )) -> 
A71: Opgave: | B71: 70 | C71: R | D71: K | E71: A | F71: I | G71: E | H71: B | I71: N | K71: =IF( J71 = "", "", IF(J71 = Blad2!B71, "Juist", "Niet juist" )) -> 
A72: Opgave: | B72: 71 | C72: A | D72: T | E72: N | F72: P | G72: E | H72: L | I72: R | K72: =IF( J72 = "", "", IF(J72 = Blad2!B72, "Juist", "Niet juist" )) -> 
A73: Opgave: | B73: 72 | C73: N | D73: E | E73: R | F73: T | G73: I | H73: S | I73: G | K73: =IF( J73 = "", "", IF(J73 = Blad2!B73, "Juist", "Niet juist" )) -> 
A74: Opgave: | B74: 73 | C74: E | D74: K | E74: M | F74: U | G74: I | H74: L | I74: R | K74: =IF( J74 = "", "", IF(J74 = Blad2!B74, "Juist", "Niet juist" )) -> 
A75: Opgave: | B75: 74 | C75: O | D75: T | E75: L | F75: E | G75: R | H75: H | I75: S | K75: =IF( J75 = "", "", IF(J75 = Blad2!B75, "Juist", "Niet juist" )) -> 
A76: Opgave: | B76: 75 | C76: R | D76: I | E76: K | F76: B | G76: A | H76: E | I76: O | K76: =IF( J76 = "", "", IF(J76 = Blad2!B76, "Juist", "Niet juist" )) -> 
A77: Opgave: | B77: 76 | C77: R | D77: S | E77: V | F77: O | G77: K | H77: T | I77: E | K77: =IF( J77 = "", "", IF(J77 = Blad2!B77, "Juist", "Niet juist" )) -> 
A78: Opgave: | B78: 77 | C78: E | D78: N | E78: L | F78: O | G78: R | H78: D | I78: G | K78: =IF( J78 = "", "", IF(J78 = Blad2!B78, "Juist", "Niet juist" )) -> 
A79: Opgave: | B79: 78 | C79: N | D79: T | E79: R | F79: I | G79: E | H79: S | I79: U | K79: =IF( J79 = "", "", IF(J79 = Blad2!B79, "Juist", "Niet juist" )) -> 
A80: Opgave: | B80: 79 | C80: L | D80: P | E80: S | F80: N | G80: O | H80: K | I80: E | K80: =IF( J80 = "", "", IF(J80 = Blad2!B80, "Juist", "Niet juist" )) -> 
A81: Opgave: | B81: 80 | C81: R | D81: E | E81: A | F81: I | G81: T | H81: G | I81: S | K81: =IF( J81 = "", "", IF(J81 = Blad2!B81, "Juist", "Niet juist" )) -> 
A82: Opgave: | B82: 81 | C82: A | D82: T | E82: E | F82: S | G82: G | H82: L | I82: D | K82: =IF( J82 = "", "", IF(J82 = Blad2!B82, "Juist", "Niet juist" )) -> 
A83: Opgave: | B83: 82 | C83: P | D83: I | E83: S | F83: R | G83: O | H83: E | I83: L | K83: =IF( J83 = "", "", IF(J83 = Blad2!B83, "Juist", "Niet juist" )) -> 
A84: Opgave: | B84: 83 | C84: A | D84: K | E84: T | F84: O | G84: S | H84: L | I84: R | K84: =IF( J84 = "", "", IF(J84 = Blad2!B84, "Juist", "Niet juist" )) -> 
A85: Opgave: | B85: 84 | C85: O | D85: R | E85: T | F85: S | G85: A | H85: M | I85: E | K85: =IF( J85 = "", "", IF(J85 = Blad2!B85, "Juist", "Niet juist" )) -> 
A86: Opgave: | B86: 85 | C86: S | D86: O | E86: E | F86: K | G86: U | H86: T | I86: N | K86: =IF( J86 = "", "", IF(J86 = Blad2!B86, "Juist", "Niet juist" )) -> 
A87: Opgave: | B87: 86 | C87: E | D87: V | E87: I | F87: O | G87: S | H87: B | I87: R | K87: =IF( J87 = "", "", IF(J87 = Blad2!B87, "Juist", "Niet juist" )) -> 
A88: Opgave: | B88: 87 | C88: O | D88: N | E88: G | F88: L | G88: I | H88: D | I88: E | K88: =IF( J88 = "", "", IF(J88 = Blad2!B88, "Juist", "Niet juist" )) -> 
A89: Opgave: | B89: 88 | C89: I | D89: N | E89: E | F89: K | G89: D | H89: L | I89: G | K89: =IF( J89 = "", "", IF(J89 = Blad2!B89, "Juist", "Niet juist" )) -> 
A90: Opgave: | B90: 89 | C90: I | D90: P | E90: S | F90: R | G90: U | H90: T | I90: E | K90: =IF( J90 = "", "", IF(J90 = Blad2!B90, "Juist", "Niet juist" )) -> 
A91: Opgave: | B91: 90 | C91: K | D91: E | E91: N | F91: A | G91: M | H91: O | I91: R | K91: =IF( J91 = "", "", IF(J91 = Blad2!B91, "Juist", "Niet juist" )) -> 
A92: Opgave: | B92: 91 | C92: E | D92: N | E92: O | F92: L | G92: D | H92: V | I92: I | K92: =IF( J92 = "", "", IF(J92 = Blad2!B92, "Juist", "Niet juist" )) -> 
A93: Opgave: | B93: 92 | C93: A | D93: E | E93: S | F93: D | G93: N | H93: M | I93: L | K93: =IF( J93 = "", "", IF(J93 = Blad2!B93, "Juist", "Niet juist" )) -> 
A94: Opgave: | B94: 93 | C94: L | D94: S | E94: I | F94: E | G94: B | H94: O | I94: K | K94: =IF( J94 = "", "", IF(J94 = Blad2!B94, "Juist", "Niet juist" )) -> 
A95: Opgave: | B95: 94 | C95: E | D95: T | E95: A | F95: R | G95: I | H95: P | I95: K | K95: =IF( J95 = "", "", IF(J95 = Blad2!B95, "Juist", "Niet juist" )) -> 
A96: Opgave: | B96: 95 | C96: S | D96: L | E96: G | F96: E | G96: T | H96: O | I96: P | K96: =IF( J96 = "", "", IF(J96 = Blad2!B96, "Juist", "Niet juist" )) -> 
A97: Opgave: | B97: 96 | C97: T | D97: A | E97: E | F97: B | G97: S | H97: R | I97: K | K97: =IF( J97 = "", "", IF(J97 = Blad2!B97, "Juist", "Niet juist" )) -> 
A98: Opgave: | B98: 97 | C98: K | D98: T | E98: O | F98: A | G98: N | H98: R | I98: E | K98: =IF( J98 = "", "", IF(J98 = Blad2!B98, "Juist", "Niet juist" )) -> 
A99: Opgave: | B99: 98 | C99: L | D99: E | E99: I | F99: O | G99: T | H99: U | I99: S | K99: =IF( J99 = "", "", IF(J99 = Blad2!B99, "Juist", "Niet juist" )) -> 
A100: Opgave: | B100: 99 | C100: R | D100: M | E100: A | F100: K | G100: B | H100: G | I100: E | K100: =IF( J100 = "", "", IF(J100 = Blad2!B100, "Juist", "Niet juist" )) -> 
A101: Opgave: | B101: 100 | C101: N | D101: E | E101: S | F101: R | G101: I | H101: T | I101: W | K101: =IF( J101 = "", "", IF(J101 = Blad2!B101, "Juist", "Niet juist" )) -> 
A102: Opgave: | B102: 101 | C102: A | D102: L | E102: E | F102: D | G102: G | H102: N | I102: K | K102: =IF( J102 = "", "", IF(J102 = Blad2!B102, "Juist", "Niet juist" )) -> 
A103: Opgave: | B103: 102 | C103: I | D103: P | E103: E | F103: G | G103: O | H103: T | I103: R | K103: =IF( J103 = "", "", IF(J103 = Blad2!B103, "Juist", "Niet juist" )) -> 
A104: Opgave: | B104: 103 | C104: E | D104: D | E104: T | F104: S | G104: U | H104: I | I104: R | K104: =IF( J104 = "", "", IF(J104 = Blad2!B104, "Juist", "Niet juist" )) -> 
A105: Opgave: | B105: 104 | C105: E | D105: S | E105: I | F105: P | G105: K | H105: L | I105: N | K105: =IF( J105 = "", "", IF(J105 = Blad2!B105, "Juist", "Niet juist" )) -> 
A106: Opgave: | B106: 105 | C106: E | D106: F | E106: R | F106: B | G106: I | H106: S | I106: O | K106: =IF( J106 = "", "", IF(J106 = Blad2!B106, "Juist", "Niet juist" )) -> 
A107: Opgave: | B107: 106 | C107: E | D107: M | E107: L | F107: T | G107: I | H107: S | I107: F | K107: =IF( J107 = "", "", IF(J107 = Blad2!B107, "Juist", "Niet juist" )) -> 
A108: Opgave: | B108: 107 | C108: A | D108: N | E108: T | F108: L | G108: S | H108: E | I108: R | K108: =IF( J108 = "", "", IF(J108 = Blad2!B108, "Juist", "Niet juist" )) -> 
A109: Opgave: | B109: 108 | C109: R | D109: S | E109: T | F109: E | G109: A | H109: P | I109: N | K109: =IF( J109 = "", "", IF(J109 = Blad2!B109, "Juist", "Niet juist" )) -> 
A110: Opgave: | B110: 109 | C110: T | D110: L | E110: U | F110: E | G110: R | H110: I | I110: S | K110: =IF( J110 = "", "", IF(J110 = Blad2!B110, "Juist", "Niet juist" )) -> 
A111: Opgave: | B111: 110 | C111: K | D111: R | E111: N | F111: O | G111: L | H111: A | I111: E | K111: =IF( J111 = "", "", IF(J111 = Blad2!B111, "Juist", "Niet juist" )) -> 
A112: Opgave: | B112: 111 | C112: R | D112: N | E112: I | F112: U | G112: F | H112: T | I112: E | K112: =IF( J112 = "", "", IF(J112 = Blad2!B112, "Juist", "Niet juist" )) -> 
A113: Opgave: | B113: 112 | C113: E | D113: T | E113: S | F113: O | G113: N | H113: P | I113: M | K113: =IF( J113 = "", "", IF(J113 = Blad2!B113, "Juist", "Niet juist" )) -> 
A114: Opgave: | B114: 113 | C114: R | D114: A | E114: E | F114: F | G114: I | H114: B | I114: K | K114: =IF( J114 = "", "", IF(J114 = Blad2!B114, "Juist", "Niet juist" )) -> 
A115: Opgave: | B115: 114 | C115: R | D115: E | E115: N | F115: A | G115: M | H115: I | I115: T | K115: =IF( J115 = "", "", IF(J115 = Blad2!B115, "Juist", "Niet juist" )) -> 
A116: Opgave: | B116: 115 | C116: K | D116: A | E116: S | F116: I | G116: E | H116: R | I116: M | K116: =IF( J116 = "", "", IF(J116 = Blad2!B116, "Juist", "Niet juist" )) -> 
A117: Opgave: | B117: 116 | C117: A | D117: E | E117: I | F117: L | G117: D | H117: N | I117: G | K117: =IF( J117 = "", "", IF(J117 = Blad2!B117, "Juist", "Niet juist" )) -> 
A118: Opgave: | B118: 117 | C118: R | D118: I | E118: N | F118: G | G118: E | H118: U | I118: Z | K118: =IF( J118 = "", "", IF(J118 = Blad2!B118, "Juist", "Niet juist" )) -> 
A119: Opgave: | B119: 118 | C119: R | D119: K | E119: I | F119: N | G119: E | H119: U | I119: Z | K119: =IF( J119 = "", "", IF(J119 = Blad2!B119, "Juist", "Niet juist" )) -> 
A120: Opgave: | B120: 119 | C120: E | D120: G | E120: I | F120: R | G120: P | H120: S | I120: N | K120: =IF( J120 = "", "", IF(J120 = Blad2!B120, "Juist", "Niet juist" )) -> 
A121: Opgave: | B121: 120 | C121: M | D121: E | E121: R | F121: A | G121: S | H121: T | I121: P | K121: =IF( J121 = "", "", IF(J121 = Blad2!B121, "Juist", "Niet juist" )) -> 
A122: Opgave: | B122: 121 | C122: E | D122: U | E122: R | F122: B | G122: I | H122: N | I122: K | K122: =IF( J122 = "", "", IF(J122 = Blad2!B122, "Juist", "Niet juist" )) -> 
A123: Opgave: | B123: 122 | C123: R | D123: N | E123: D | F123: G | G123: S | H123: E | I123: O | K123: =IF( J123 = "", "", IF(J123 = Blad2!B123, "Juist", "Niet juist" )) -> 
A124: Opgave: | B124: 123 | C124: S | D124: M | E124: T | F124: A | G124: I | H124: L | I124: R | K124: =IF( J124 = "", "", IF(J124 = Blad2!B124, "Juist", "Niet juist" )) -> 
A125: Opgave: | B125: 124 | C125: I | D125: U | E125: R | F125: P | G125: N | H125: L | I125: E | K125: =IF( J125 = "", "", IF(J125 = Blad2!B125, "Juist", "Niet juist" )) -> 
A126: Opgave: | B126: 125 | C126: S | D126: R | E126: A | F126: N | G126: M | H126: O | I126: T | K126: =IF( J126 = "", "", IF(J126 = Blad2!B126, "Juist", "Niet juist" )) -> 
A127: Opgave: | B127: 126 | C127: E | D127: T | E127: D | F127: O | G127: P | H127: S | I127: K | K127: =IF( J127 = "", "", IF(J127 = Blad2!B127, "Juist", "Niet juist" )) -> 
A128: Opgave: | B128: 127 | C128: E | D128: A | E128: S | F128: T | G128: R | H128: L | I128: K | K128: =IF( J128 = "", "", IF(J128 = Blad2!B128, "Juist", "Niet juist" )) -> 
A129: Opgave: | B129: 128 | C129: E | D129: I | E129: N | F129: K | G129: R | H129: U | I129: P | K129: =IF( J129 = "", "", IF(J129 = Blad2!B129, "Juist", "Niet juist" )) -> 
A130: Opgave: | B130: 129 | C130: S | D130: N | E130: L | F130: U | G130: E | H130: I | I130: P | K130: =IF( J130 = "", "", IF(J130 = Blad2!B130, "Juist", "Niet juist" )) -> 
A131: Opgave: | B131: 130 | C131: L | D131: N | E131: A | F131: E | G131: V | H131: G | I131: O | K131: =IF( J131 = "", "", IF(J131 = Blad2!B131, "Juist", "Niet juist" )) -> 
A132: Opgave: | B132: 131 | C132: E | D132: R | E132: D | F132: I | G132: T | H132: A | I132: K | K132: =IF( J132 = "", "", IF(J132 = Blad2!B132, "Juist", "Niet juist" )) -> 
A133: Opgave: | B133: 132 | C133: T | D133: A | E133: U | F133: G | G133: E | H133: N | I133: S | K133: =IF( J133 = "", "", IF(J133 = Blad2!B133, "Juist", "Niet juist" )) -> 
A134: Opgave: | B134: 133 | C134: A | D134: O | E134: L | F134: G | G134: E | H134: S | I134: T | K134: =IF( J134 = "", "", IF(J134 = Blad2!B134, "Juist", "Niet juist" )) -> 
A135: Opgave: | B135: 134 | C135: B | D135: T | E135: E | F135: A | G135: K | H135: O | I135: R | K135: =IF( J135 = "", "", IF(J135 = Blad2!B135, "Juist", "Niet juist" )) -> 
A136: Opgave: | B136: 135 | C136: T | D136: R | E136: S | F136: N | G136: M | H136: O | I136: E | K136: =IF( J136 = "", "", IF(J136 = Blad2!B136, "Juist", "Niet juist" )) -> 
A137: Opgave: | B137: 136 | C137: E | D137: R | E137: O | F137: N | G137: T | H137: M | I137: U | K137: =IF( J137 = "", "", IF(J137 = Blad2!B137, "Juist", "Niet juist" )) -> 
A138: Opgave: | B138: 137 | C138: P | D138: L | E138: N | F138: O | G138: T | H138: S | I138: I | K138: =IF( J138 = "", "", IF(J138 = Blad2!B138, "Juist", "Niet juist" )) -> 
A139: Opgave: | B139: 138 | C139: R | D139: K | E139: G | F139: I | G139: U | H139: E | I139: N | K139: =IF( J139 = "", "", IF(J139 = Blad2!B139, "Juist", "Niet juist" )) -> 
A140: Opgave: | B140: 139 | C140: R | D140: N | E140: S | F140: I | G140: E | H140: A | I140: D | K140: =IF( J140 = "", "", IF(J140 = Blad2!B140, "Juist", "Niet juist" )) -> 
A141: Opgave: | B141: 140 | C141: S | D141: N | E141: T | F141: P | G141: E | H141: U | I141: R | K141: =IF( J141 = "", "", IF(J141 = Blad2!B141, "Juist", "Niet juist" )) -> 
A142: Opgave: | B142: 141 | C142: R | D142: M | E142: A | F142: V | G142: O | H142: E | I142: N | K142: =IF( J142 = "", "", IF(J142 = Blad2!B142, "Juist", "Niet juist" )) -> 
A143: Opgave: | B143: 142 | C143: S | D143: O | E143: D | F143: R | G143: T | H143: E | I143: B | K143: =IF( J143 = "", "", IF(J143 = Blad2!B143, "Juist", "Niet juist" )) -> 
A144: Opgave: | B144: 143 | C144: E | D144: M | E144: O | F144: K | G144: D | H144: R | I144: G | K144: =IF( J144 = "", "", IF(J144 = Blad2!B144, "Juist", "Niet juist" )) -> 
A145: Opgave: | B145: 144 | C145: T | D145: E | E145: N | F145: A | G145: P | H145: U | I145: I | K145: =IF( J145 = "", "", IF(J145 = Blad2!B145, "Juist", "Niet juist" )) -> 
A146: Opgave: | B146: 145 | C146: R | D146: A | E146: W | F146: E | G146: N | H146: K | I146: D | K146: =IF( J146 = "", "", IF(J146 = Blad2!B146, "Juist", "Niet juist" )) -> 
A147: Opgave: | B147: 146 | C147: E | D147: T | E147: M | F147: N | G147: A | H147: G | I147: I | K147: =IF( J147 = "", "", IF(J147 = Blad2!B147, "Juist", "Niet juist" )) -> 
A148: Opgave: | B148: 147 | C148: S | D148: U | E148: N | F148: E | G148: K | H148: L | I148: T | K148: =IF( J148 = "", "", IF(J148 = Blad2!B148, "Juist", "Niet juist" )) -> 
A149: Opgave: | B149: 148 | C149: A | D149: G | E149: T | F149: K | G149: L | H149: E | I149: S | K149: =IF( J149 = "", "", IF(J149 = Blad2!B149, "Juist", "Niet juist" )) -> 
A150: Opgave: | B150: 149 | C150: E | D150: U | E150: I | F150: T | G150: S | H150: L | I150: B | K150: =IF( J150 = "", "", IF(J150 = Blad2!B150, "Juist", "Niet juist" )) -> 
A151: Opgave: | B151: 150 | C151: E | D151: K | E151: S | F151: I | G151: T | H151: R | I151: C | K151: =IF( J151 = "", "", IF(J151 = Blad2!B151, "Juist", "Niet juist" )) -> 
A152: Opgave: | B152: 151 | C152: T | D152: V | E152: E | F152: N | G152: S | H152: U | I152: I | K152: =IF( J152 = "", "", IF(J152 = Blad2!B152, "Juist", "Niet juist" )) -> 
A153: Opgave: | B153: 152 | C153: E | D153: V | E153: O | F153: G | G153: I | H153: N | I153: R | K153: =IF( J153 = "", "", IF(J153 = Blad2!B153, "Juist", "Niet juist" )) -> 
A154: Opgave: | B154: 153 | C154: S | D154: D | E154: O | F154: T | G154: R | H154: A | I154: K | K154: =IF( J154 = "", "", IF(J154 = Blad2!B154, "Juist", "Niet juist" )) -> 
A155: Opgave: | B155: 154 | C155: E | D155: S | E155: N | F155: K | G155: A | H155: P | I155: L | K155: =IF( J155 = "", "", IF(J155 = Blad2!B155, "Juist", "Niet juist" )) -> 
A156: Opgave: | B156: 155 | C156: A | D156: E | E156: S | F156: L | G156: P | H156: M | I156: D | K156: =IF( J156 = "", "", IF(J156 = Blad2!B156, "Juist", "Niet juist" )) -> 
A157: Opgave: | B157: 156 | C157: R | D157: P | E157: K | F157: T | G157: E | H157: A | I157: H | K157: =IF( J157 = "", "", IF(J157 = Blad2!B157, "Juist", "Niet juist" )) -> 
A158: Opgave: | B158: 157 | C158: E | D158: I | E158: V | F158: O | G158: R | H158: G | I158: D | K158: =IF( J158 = "", "", IF(J158 = Blad2!B158, "Juist", "Niet juist" )) -> 
A159: Opgave: | B159: 158 | C159: S | D159: O | E159: R | F159: E | G159: N | H159: D | I159: T | K159: =IF( J159 = "", "", IF(J159 = Blad2!B159, "Juist", "Niet juist" )) -> 
A160: Opgave: | B160: 159 | C160: S | D160: B | E160: N | F160: I | G160: E | H160: R | I160: O | K160: =IF( J160 = "", "", IF(J160 = Blad2!B160, "Juist", "Niet juist" )) -> 
A161: Opgave: | B161: 160 | C161: G | D161: R | E161: E | F161: S | G161: L | H161: N | I161: A | K161: =IF( J161 = "", "", IF(J161 = Blad2!B161, "Juist", "Niet juist" )) -> 
A162: Opgave: | B162: 161 | C162: E | D162: V | E162: D | F162: G | G162: I | H162: R | I162: N | K162: =IF( J162 = "", "", IF(J162 = Blad2!B162, "Juist", "Niet juist" )) -> 
A163: Opgave: | B163: 162 | C163: D | D163: E | E163: A | F163: N | G163: M | H163: O | I163: L | K163: =IF( J163 = "", "", IF(J163 = Blad2!B163, "Juist", "Niet juist" )) -> 
A164: Opgave: | B164: 163 | C164: E | D164: G | E164: T | F164: I | G164: R | H164: N | I164: A | K164: =IF( J164 = "", "", IF(J164 = Blad2!B164, "Juist", "Niet juist" )) -> 
A165: Opgave: | B165: 164 | C165: U | D165: R | E165: I | F165: T | G165: E | H165: B | I165: N | K165: =IF( J165 = "", "", IF(J165 = Blad2!B165, "Juist", "Niet juist" )) -> 
A166: Opgave: | B166: 165 | C166: E | D166: L | E166: T | F166: S | G166: R | H166: I | I166: A | K166: =IF( J166 = "", "", IF(J166 = Blad2!B166, "Juist", "Niet juist" )) -> 
A167: Opgave: | B167: 166 | C167: R | D167: G | E167: E | F167: U | G167: T | H167: I | I167: P | K167: =IF( J167 = "", "", IF(J167 = Blad2!B167, "Juist", "Niet juist" )) -> 
A168: Opgave: | B168: 167 | C168: L | D168: A | E168: B | F168: E | G168: P | H168: K | I168: S | K168: =IF( J168 = "", "", IF(J168 = Blad2!B168, "Juist", "Niet juist" )) -> 
A169: Opgave: | B169: 168 | C169: P | D169: T | E169: O | F169: N | G169: E | H169: R | I169: S | K169: =IF( J169 = "", "", IF(J169 = Blad2!B169, "Juist", "Niet juist" )) -> 
A170: Opgave: | B170: 169 | C170: A | D170: G | E170: E | F170: L | G170: N | H170: W | I170: D | K170: =IF( J170 = "", "", IF(J170 = Blad2!B170, "Juist", "Niet juist" )) -> 
A171: Opgave: | B171: 170 | C171: S | D171: T | E171: L | F171: F | G171: R | H171: E | I171: I | K171: =IF( J171 = "", "", IF(J171 = Blad2!B171, "Juist", "Niet juist" )) -> 
A172: Opgave: | B172: 171 | C172: S | D172: G | E172: R | F172: E | G172: O | H172: T | I172: I | K172: =IF( J172 = "", "", IF(J172 = Blad2!B172, "Juist", "Niet juist" )) -> 
A173: Opgave: | B173: 172 | C173: R | D173: S | E173: N | F173: B | G173: K | H173: O | I173: A | K173: =IF( J173 = "", "", IF(J173 = Blad2!B173, "Juist", "Niet juist" )) -> 
A174: Opgave: | B174: 173 | C174: T | D174: P | E174: A | F174: N | G174: G | H174: S | I174: E | K174: =IF( J174 = "", "", IF(J174 = Blad2!B174, "Juist", "Niet juist" )) -> 
A175: Opgave: | B175: 174 | C175: E | D175: O | E175: G | F175: R | G175: P | H175: N | I175: I | K175: =IF( J175 = "", "", IF(J175 = Blad2!B175, "Juist", "Niet juist" )) -> 
A176: Opgave: | B176: 175 | C176: T | D176: I | E176: M | F176: P | G176: S | H176: E | I176: A | K176: =IF( J176 = "", "", IF(J176 = Blad2!B176, "Juist", "Niet juist" )) -> 
A177: Opgave: | B177: 176 | C177: T | D177: I | E177: B | F177: S | G177: R | H177: O | I177: N | K177: =IF( J177 = "", "", IF(J177 = Blad2!B177, "Juist", "Niet juist" )) -> 
A178: Opgave: | B178: 177 | C178: E | D178: O | E178: L | F178: F | G178: P | H178: R | I178: I | K178: =IF( J178 = "", "", IF(J178 = Blad2!B178, "Juist", "Niet juist" )) -> 
A179: Opgave: | B179: 178 | C179: T | D179: I | E179: P | F179: R | G179: O | H179: U | I179: E | K179: =IF( J179 = "", "", IF(J179 = Blad2!B179, "Juist", "Niet juist" )) -> 
A180: Opgave: | B180: 179 | C180: E | D180: R | E180: L | F180: T | G180: D | H180: A | I180: I | K180: =IF( J180 = "", "", IF(J180 = Blad2!B180, "Juist", "Niet juist" )) -> 
A181: Opgave: | B181: 180 | C181: K | D181: U | E181: L | F181: T | G181: E | H181: R | I181: S | K181: =IF( J181 = "", "", IF(J181 = Blad2!B181, "Juist", "Niet juist" )) -> 
A182: Opgave: | B182: 181 | C182: A | D182: T | E182: S | F182: R | G182: O | H182: L | I182: K | K182: =IF( J182 = "", "", IF(J182 = Blad2!B182, "Juist", "Niet juist" )) -> 
A183: Opgave: | B183: 182 | C183: T | D183: A | E183: R | F183: H | G183: P | H183: S | I183: I | K183: =IF( J183 = "", "", IF(J183 = Blad2!B183, "Juist", "Niet juist" )) -> 
A184: Opgave: | B184: 183 | C184: T | D184: N | E184: U | F184: G | G184: S | H184: R | I184: I | K184: =IF( J184 = "", "", IF(J184 = Blad2!B184, "Juist", "Niet juist" )) -> 
A185: Opgave: | B185: 184 | C185: T | D185: N | E185: F | F185: S | G185: E | H185: I | I185: L | K185: =IF( J185 = "", "", IF(J185 = Blad2!B185, "Juist", "Niet juist" )) -> 
A186: Opgave: | B186: 185 | C186: S | D186: N | E186: A | F186: G | G186: P | H186: L | I186: E | K186: =IF( J186 = "", "", IF(J186 = Blad2!B186, "Juist", "Niet juist" )) -> 
A187: Opgave: | B187: 186 | C187: E | D187: A | E187: B | F187: M | G187: O | H187: R | I187: G | K187: =IF( J187 = "", "", IF(J187 = Blad2!B187, "Juist", "Niet juist" )) -> 
A188: Opgave: | B188: 187 | C188: I | D188: S | E188: V | F188: R | G188: U | H188: E | I188: N | K188: =IF( J188 = "", "", IF(J188 = Blad2!B188, "Juist", "Niet juist" )) -> 
A189: Opgave: | B189: 188 | C189: E | D189: L | E189: I | F189: O | G189: N | H189: G | I189: B | K189: =IF( J189 = "", "", IF(J189 = Blad2!B189, "Juist", "Niet juist" )) -> 
A190: Opgave: | B190: 189 | C190: E | D190: R | E190: S | F190: T | G190: U | H190: J | I190: I | K190: =IF( J190 = "", "", IF(J190 = Blad2!B190, "Juist", "Niet juist" )) -> 
A191: Opgave: | B191: 190 | C191: E | D191: D | E191: A | F191: N | G191: B | H191: R | I191: K | K191: =IF( J191 = "", "", IF(J191 = Blad2!B191, "Juist", "Niet juist" )) -> 
A192: Opgave: | B192: 191 | C192: S | D192: I | E192: T | F192: E | G192: R | H192: V | I192: M | K192: =IF( J192 = "", "", IF(J192 = Blad2!B192, "Juist", "Niet juist" )) -> 
A193: Opgave: | B193: 192 | C193: S | D193: N | E193: O | F193: G | G193: T | H193: L | I193: A | K193: =IF( J193 = "", "", IF(J193 = Blad2!B193, "Juist", "Niet juist" )) -> 
A194: Opgave: | B194: 193 | C194: E | D194: R | E194: A | F194: K | G194: M | H194: I | I194: L | K194: =IF( J194 = "", "", IF(J194 = Blad2!B194, "Juist", "Niet juist" )) -> 
A195: Opgave: | B195: 194 | C195: S | D195: I | E195: E | F195: T | G195: R | H195: P | I195: H | K195: =IF( J195 = "", "", IF(J195 = Blad2!B195, "Juist", "Niet juist" )) -> 
A196: Opgave: | B196: 195 | C196: I | D196: R | E196: K | F196: S | G196: A | H196: T | I196: N | K196: =IF( J196 = "", "", IF(J196 = Blad2!B196, "Juist", "Niet juist" )) -> 
A197: Opgave: | B197: 196 | C197: R | D197: G | E197: E | F197: A | G197: T | H197: I | I197: F | K197: =IF( J197 = "", "", IF(J197 = Blad2!B197, "Juist", "Niet juist" )) -> 
A198: Opgave: | B198: 197 | C198: E | D198: O | E198: L | F198: S | G198: R | H198: B | I198: P | K198: =IF( J198 = "", "", IF(J198 = Blad2!B198, "Juist", "Niet juist" )) -> 
A199: Opgave: | B199: 198 | C199: A | D199: D | E199: R | F199: G | G199: N | H199: W | I199: E | K199: =IF( J199 = "", "", IF(J199 = Blad2!B199, "Juist", "Niet juist" )) -> 
A200: Opgave: | B200: 199 | C200: E | D200: S | E200: N | F200: L | G200: I | H200: G | I200: R | K200: =IF( J200 = "", "", IF(J200 = Blad2!B200, "Juist", "Niet juist" )) -> 
... 104 more rows

Sheet Blad2
A1: Opgave: | B1: Oplossing
A2: 1 | B2: Fluiter
A3: 2 | B3: Merklap
A4: 3 | B4: Morgens
A5: 4 | B5: Drankje
A6: 5 | B6: Vangers
A7: 6 | B7: Stakend
A8: 7 | B8: Polders
A9: 8 | B9: Flaters
A10: 9 | B10: Druipen
A11: 10 | B11: Sluiper
A12: 11 | B12: Realist
A13: 12 | B13: Notaris
A14: 13 | B14: Drietal
A15: 14 | B15: Harpist
A16: 15 | B16: Besluit
A17: 16 | B17: Routine
A18: 17 | B18: Volgend
A19: 18 | B19: Voeling
A20: 19 | B20: Matrone
A21: 20 | B21: Grotesk
A22: 21 | B22: Strikje
A23: 22 | B23: Inkoper
A24: 23 | B24: Biertap
A25: 24 | B25: Stroken
A26: 25 | B26: Legkast
A27: 26 | B27: Sitemap
A28: 27 | B28: Droevig
A29: 28 | B29: Rekband
A30: 29 | B30: Kopstem
A31: 30 | B31: Dorsten
A32: 31 | B32: Wegrand
A33: 32 | B33: Mestkar
A34: 33 | B34: Purisme
A35: 34 | B35: Tuinder
A36: 35 | B36: Hipster
A37: 36 | B37: Klutsen
A38: 37 | B38: Werking
A39: 38 | B39: Kristal
A40: 39 | B40: Snuiver
A41: 40 | B41: Gesnapt
A42: 41 | B42: Artikel
A43: 42 | B43: Slinger
A44: 43 | B44: Landweg
A45: 44 | B45: Barsten
A46: 45 | B46: Roeping
A47: 46 | B47: Senator
A48: 47 | B48: Borstel
A49: 48 | B49: Romeins
A50: 49 | B50: Bridgen
A51: 50 | B51: Remblok
A52: 51 | B52: Pelsrob
A53: 52 | B53: Blakend
A54: 53 | B54: Vermits
A55: 54 | B55: Ribsruk
A56: 55 | B56: Toendra
A57: 56 | B57: Kruisen
A58: 57 | B58: Mastiek
A59: 58 | B59: Strodek
A60: 59 | B60: Portiek
A61: 60 | B61: Voerbak
A62: 61 | B62: Apostel
A63: 62 | B63: Sulfiet
A64: 63 | B64: Slagpen
A65: 64 | B65: Luister
A66: 65 | B66: Knielap
A67: 66 | B67: Fluiten
A68: 67 | B68: Bruisen
A69: 68 | B69: Pikorde
A70: 69 | B70: Flitsen
A71: 70 | B71: Bankier
A72: 71 | B72: Planter
A73: 72 | B73: Ernstig
A74: 73 | B74: Kruimel
A75: 74 | B75: Holster
A76: 75 | B76: Kariboe
A77: 76 | B77: Rokvest
A78: 77 | B78: Grondel
A79: 78 | B79: Snuiter
A80: 79 | B80: Spelonk
A81: 80 | B81: Sigaret
A82: 81 | B82: Stageld
A83: 82 | B83: Spoiler
A84: 83 | B84: Kraslot
A85: 84 | B85: Maestro
A86: 85 | B86: Netkous
A87: 86 | B87: Visboer
A88: 87 | B88: Onledig
A89: 88 | B89: Kleding
A90: 89 | B90: Spuiter
A91: 90 | B91: Nakomer
A92: 91 | B92: Invloed
A93: 92 | B93: Smalend
A94: 93 | B94: Obelisk
A95: 94 | B95: Parkiet
A96: 95 | B96: Gepolst
A97: 96 | B97: Bakster
A98: 97 | B98: Torenka
A99: 98 | B99: Solutie
A100: 99 | B100: Bergkam
A101: 100 | B101: Winters
A102: 101 | B102: Klagend
A103: 102 | B103: Egotrip
A104: 103 | B104: Duister
A105: 104 | B105: Knipsel
A106: 105 | B106: Rosbief
A107: 106 | B107: Filmset
A108: 107 | B108: Renstal
A109: 108 | B109: Pantser
A110: 109 | B110: Sluiter
A111: 110 | B111: Koralen
A112: 111 | B112: Fruiten
A113: 112 | B113: Stompen
A114: 113 | B114: Fabriek
A115: 114 | B115: Minaret
A116: 115 | B116: Markies
A117: 116 | B117: Nadelig
A118: 117 | B118: Geurzin
A119: 118 | B119: Reukzin
A120: 119 | B120: Persing
A121: 120 | B121: Stamper
A122: 121 | B122: Inbreuk
A123: 122 | B123: Esgrond
A124: 123 | B124: Mistral
A125: 124 | B125: Pruilen
A126: 125 | B126: Stroman
A127: 126 | B127: Desktop
A128: 127 | B128: Stalker
A129: 128 | B129: Kruipen
A130: 129 | B130: Sluipen
A131: 130 | B131: Ongeval
A132: 131 | B132: Dakriet
A133: 132 | B133: Neusgat
A134: 133 | B134: Toeslag
A135: 134 | B135: Roetbak
A136: 135 | B136: Monster
A137: 136 | B137: Monteur
A138: 137 | B138: Spintol
A139: 138 | B139: Keuring
A140: 139 | B140: Sardine
A141: 140 | B141: Prutsen
A142: 141 | B142: Voerman
A143: 142 | B143: Strobed
A144: 143 | B144: Gekromd
A145: 144 | B145: Petunia
A146: 145 | B146: Wandrek
A147: 146 | B147: Matigen
A148: 147 | B148: Klutsen
A149: 148 | B149: Legkast
A150: 149 | B150: Besluit
A151: 150 | B151: Sticker
A152: 151 | B152: Stuiven
A153: 152 | B153: Voering
A154: 153 | B154: Strodak
A155: 154 | B155: Spalken
A156: 155 | B156: Damspel
A157: 156 | B157: Traphek
A158: 157 | B158: Droevig
A159: 158 | B159: Storend
A160: 159 | B160: Bosnier
A161: 160 | B161: Erlangs
A162: 161 | B162: Derving
A163: 162 | B163: Doelman
A164: 163 | B164: Graniet
A165: 164 | B165: Turbine
A166: 165 | B166: Realist
A167: 166 | B167: Gierput
A168: 167 | B168: Klapbes
A169: 168 | B169: Stropen
A170: 169 | B170: Landweg
A171: 170 | B171: Flitser
A172: 171 | B172: Roestig
A173: 172 | B173: Bosrank
A174: 173 | B174: Gesnapt
A175: 174 | B175: Roeping
A176: 175 | B176: Sitemap
A177: 176 | B177: Inborst
A178: 177 | B178: Profiel
A179: 178 | B179: Uitroep
A180: 179 | B180: Drietal
A181: 180 | B181: Krulset
A182: 181 | B182: Kastrol
A183: 182 | B183: Harpist
A184: 183 | B184: Sturing
A185: 184 | B185: Flitsen
A186: 185 | B186: Slagpen
A187: 186 | B187: Embargo
A188: 187 | B188: Snuiver
A189: 188 | B189: Gobelin
A190: 189 | B190: Juriste
A191: 190 | B191: Rekband
A192: 191 | B192: Vermits
A193: 192 | B193: Ontslag
A194: 193 | B194: Mirakel
A195: 194 | B195: Hipster
A196: 195 | B196: Riskant
A197: 196 | B197: Grafiet
A198: 197 | B198: Pelsrob
A199: 198 | B199: Wegrand
A200: 199 | B200: Slinger
... 397 more rows

Sheet Blad3
